Workbook

Sheet Sheet1
M1: Thresholds solution range
A2: Goal: | M2: Low | O2: High
A3: Find thresholds where there are equal number of 1s and 0s | M3: =INDEX(Thresh,MATCH(0.5,Table7[OptRng],0)) -> -0.014 | O3: =INDEX(Thresh,MATCH(0.5,Table7[OptRng],0)+COUNTIF(Table7[OptRng],0.5)-1) -> -0.006
A7: Table6 | D7: Table5 | G7: Table2
A8: Thold | B8: Balance | D8: Thold | E8: Balance | G8: Thold | H8: Balance | J8: RRand
A9: -0.01 | B9: =SUM(Table3[HiLo])/ROWS(Table3[]) -> 0.5 | D9: 0 | E9: =SUM(Table4[HiLo])/ROWS(Table4[]) -> 0.5 | G9: 0 | H9: =SUM(Table1[HiLo])/ROWS(Table1[]) -> 0.5 | J9: =RAND()-0.5 -> 0.1210039147
A11: Table3 | D11: Table4 | G11: Table1 | J11: for graphing only | M11: for graphing only | P11: for graphing only | S11: Table7
A12: Bin | B12: HiLo | D12: Bin | E12: HiLo | G12: Bin | H12: HiLo | J12: Table_3 | K12: =SUM(Table3[HiLo])/ROWS(Table3[]) -> 0.5 | M12: Table_4 | N12: =SUM(Table4[HiLo])/ROWS(Table4[]) -> 0.5 | P12: Table_1 | Q12: =SUM(Table1[HiLo])/ROWS(Table1[]) -> 0.5 | S12: Optimum | T12: OptRng
A13: -0.3409357022 | B13: =--([Bin]>Table6[Thold]) -> 0 | D13: 0.3160051037 | E13: =--([Bin]>Table5[Thold]) -> 1 | G13: 0.2798616801 | H13: =--([Bin]>Table2[Thold]) -> 1 | J13: -0.2 | K13: 0.7692307692 | M13: -0.2 | N13: 0.6923076923 | P13: -0.2 | Q13: 0.8076923077 | S13: =ABS(0.5-SUM(INDEX(Table_3,rown),INDEX(Table_4,rown),INDEX(Table_1,rown))/3) -> 0.2564102564 | T13: =IF([Optimum]=MIN([Optimum]),0.5,NA()) -> 
A14: 0.2849181496 | B14: =--([Bin]>Table6[Thold]) -> 1 | D14: -0.0196900214 | E14: =--([Bin]>Table5[Thold]) -> 0 | G14: 0.4348618751 | H14: =--([Bin]>Table2[Thold]) -> 1 | J14: -0.198 | K14: 0.7692307692 | M14: -0.198 | N14: 0.6923076923 | P14: -0.198 | Q14: 0.7884615385 | S14: =ABS(0.5-SUM(INDEX(Table_3,rown),INDEX(Table_4,rown),INDEX(Table_1,rown))/3) -> 0.25 | T14: =IF([Optimum]=MIN([Optimum]),0.5,NA()) -> 
A15: 0.2488344132 | B15: =--([Bin]>Table6[Thold]) -> 1 | D15: 0.03634445794 | E15: =--([Bin]>Table5[Thold]) -> 1 | G15: -0.1224051199 | H15: =--([Bin]>Table2[Thold]) -> 0 | J15: -0.196 | K15: 0.7692307692 | M15: -0.196 | N15: 0.6923076923 | P15: -0.196 | Q15: 0.7884615385 | S15: =ABS(0.5-SUM(INDEX(Table_3,rown),INDEX(Table_4,rown),INDEX(Table_1,rown))/3) -> 0.25 | T15: =IF([Optimum]=MIN([Optimum]),0.5,NA()) -> 
A16: -0.1067022991 | B16: =--([Bin]>Table6[Thold]) -> 0 | D16: -0.2998113734 | E16: =--([Bin]>Table5[Thold]) -> 0 | G16: -0.1984049752 | H16: =--([Bin]>Table2[Thold]) -> 0 | J16: -0.194 | K16: 0.7692307692 | M16: -0.194 | N16: 0.6923076923 | P16: -0.194 | Q16: 0.7884615385 | S16: =ABS(0.5-SUM(INDEX(Table_3,rown),INDEX(Table_4,rown),INDEX(Table_1,rown))/3) -> 0.25 | T16: =IF([Optimum]=MIN([Optimum]),0.5,NA()) -> 
A17: -0.1262461676 | B17: =--([Bin]>Table6[Thold]) -> 0 | D17: -0.4739592177 | E17: =--([Bin]>Table5[Thold]) -> 0 | G17: 0.008279563778 | H17: =--([Bin]>Table2[Thold]) -> 1 | J17: -0.192 | K17: 0.7692307692 | M17: -0.192 | N17: 0.6923076923 | P17: -0.192 | Q17: 0.7884615385 | S17: =ABS(0.5-SUM(INDEX(Table_3,rown),INDEX(Table_4,rown),INDEX(Table_1,rown))/3) -> 0.25 | T17: =IF([Optimum]=MIN([Optimum]),0.5,NA()) -> 
A18: -0.02896879188 | B18: =--([Bin]>Table6[Thold]) -> 0 | D18: -0.4848419506 | E18: =--([Bin]>Table5[Thold]) -> 0 | G18: 0.4902445116 | H18: =--([Bin]>Table2[Thold]) -> 1 | J18: -0.19 | K18: 0.7692307692 | M18: -0.19 | N18: 0.6923076923 | P18: -0.19 | Q18: 0.7692307692 | S18: =ABS(0.5-SUM(INDEX(Table_3,rown),INDEX(Table_4,rown),INDEX(Table_1,rown))/3) -> 0.2435897436 | T18: =IF([Optimum]=MIN([Optimum]),0.5,NA()) -> 
A19: -0.1169065834 | B19: =--([Bin]>Table6[Thold]) -> 0 | D19: -0.2061629031 | E19: =--([Bin]>Table5[Thold]) -> 0 | G19: 0.2569467257 | H19: =--([Bin]>Table2[Thold]) -> 1 | J19: -0.188 | K19: 0.7692307692 | M19: -0.188 | N19: 0.6923076923 | P19: -0.188 | Q19: 0.7692307692 | S19: =ABS(0.5-SUM(INDEX(Table_3,rown),INDEX(Table_4,rown),INDEX(Table_1,rown))/3) -> 0.2435897436 | T19: =IF([Optimum]=MIN([Optimum]),0.5,NA()) -> 
A20: 0.4248313306 | B20: =--([Bin]>Table6[Thold]) -> 1 | D20: 0.1839024934 | E20: =--([Bin]>Table5[Thold]) -> 1 | G20: -0.04693237261 | H20: =--([Bin]>Table2[Thold]) -> 0 | J20: -0.186 | K20: 0.75 | M20: -0.186 | N20: 0.6923076923 | P20: -0.186 | Q20: 0.7692307692 | S20: =ABS(0.5-SUM(INDEX(Table_3,rown),INDEX(Table_4,rown),INDEX(Table_1,rown))/3) -> 0.2371794872 | T20: =IF([Optimum]=MIN([Optimum]),0.5,NA()) -> 
A21: -0.4893524097 | B21: =--([Bin]>Table6[Thold]) -> 0 | D21: 0.3838814559 | E21: =--([Bin]>Table5[Thold]) -> 1 | G21: 0.1673874045 | H21: =--([Bin]>Table2[Thold]) -> 1 | J21: -0.184 | K21: 0.75 | M21: -0.184 | N21: 0.6923076923 | P21: -0.184 | Q21: 0.7692307692 | S21: =ABS(0.5-SUM(INDEX(Table_3,rown),INDEX(Table_4,rown),INDEX(Table_1,rown))/3) -> 0.2371794872 | T21: =IF([Optimum]=MIN([Optimum]),0.5,NA()) -> 
A22: 0.4796176226 | B22: =--([Bin]>Table6[Thold]) -> 1 | D22: 0.4035371425 | E22: =--([Bin]>Table5[Thold]) -> 1 | G22: -0.3199028018 | H22: =--([Bin]>Table2[Thold]) -> 0 | J22: -0.182 | K22: 0.75 | M22: -0.182 | N22: 0.6923076923 | P22: -0.182 | Q22: 0.7692307692 | S22: =ABS(0.5-SUM(INDEX(Table_3,rown),INDEX(Table_4,rown),INDEX(Table_1,rown))/3) -> 0.2371794872 | T22: =IF([Optimum]=MIN([Optimum]),0.5,NA()) -> 
A23: -0.4985552116 | B23: =--([Bin]>Table6[Thold]) -> 0 | D23: -0.09463837122 | E23: =--([Bin]>Table5[Thold]) -> 0 | G23: 0.2650638682 | H23: =--([Bin]>Table2[Thold]) -> 1 | J23: -0.18 | K23: 0.75 | M23: -0.18 | N23: 0.6923076923 | P23: -0.18 | Q23: 0.7692307692 | S23: =ABS(0.5-SUM(INDEX(Table_3,rown),INDEX(Table_4,rown),INDEX(Table_1,rown))/3) -> 0.2371794872 | T23: =IF([Optimum]=MIN([Optimum]),0.5,NA()) -> 
A24: -0.08781975262 | B24: =--([Bin]>Table6[Thold]) -> 0 | D24: 0.1816954777 | E24: =--([Bin]>Table5[Thold]) -> 1 | G24: 0.4318841238 | H24: =--([Bin]>Table2[Thold]) -> 1 | J24: -0.178 | K24: 0.75 | M24: -0.178 | N24: 0.6923076923 | P24: -0.178 | Q24: 0.7692307692 | S24: =ABS(0.5-SUM(INDEX(Table_3,rown),INDEX(Table_4,rown),INDEX(Table_1,rown))/3) -> 0.2371794872 | T24: =IF([Optimum]=MIN([Optimum]),0.5,NA()) -> 
A25: -0.2534455994 | B25: =--([Bin]>Table6[Thold]) -> 0 | D25: -0.07023174577 | E25: =--([Bin]>Table5[Thold]) -> 0 | G25: 0.4474436702 | H25: =--([Bin]>Table2[Thold]) -> 1 | J25: -0.176 | K25: 0.7307692308 | M25: -0.176 | N25: 0.6923076923 | P25: -0.176 | Q25: 0.7692307692 | S25: =ABS(0.5-SUM(INDEX(Table_3,rown),INDEX(Table_4,rown),INDEX(Table_1,rown))/3) -> 0.2307692308 | T25: =IF([Optimum]=MIN([Optimum]),0.5,NA()) -> 
A26: 0.4859292481 | B26: =--([Bin]>Table6[Thold]) -> 1 | D26: 0.3110114246 | E26: =--([Bin]>Table5[Thold]) -> 1 | G26: 0.3451759163 | H26: =--([Bin]>Table2[Thold]) -> 1 | J26: -0.174 | K26: 0.7115384615 | M26: -0.174 | N26: 0.6923076923 | P26: -0.174 | Q26: 0.7692307692 | S26: =ABS(0.5-SUM(INDEX(Table_3,rown),INDEX(Table_4,rown),INDEX(Table_1,rown))/3) -> 0.2243589744 | T26: =IF([Optimum]=MIN([Optimum]),0.5,NA()) -> 
A27: 0.2065501235 | B27: =--([Bin]>Table6[Thold]) -> 1 | D27: 0.1361382223 | E27: =--([Bin]>Table5[Thold]) -> 1 | G27: 0.3814980775 | H27: =--([Bin]>Table2[Thold]) -> 1 | J27: -0.172 | K27: 0.7115384615 | M27: -0.172 | N27: 0.6923076923 | P27: -0.172 | Q27: 0.7692307692 | S27: =ABS(0.5-SUM(INDEX(Table_3,rown),INDEX(Table_4,rown),INDEX(Table_1,rown))/3) -> 0.2243589744 | T27: =IF([Optimum]=MIN([Optimum]),0.5,NA()) -> 
A28: -0.2101998208 | B28: =--([Bin]>Table6[Thold]) -> 0 | D28: 0.3342948312 | E28: =--([Bin]>Table5[Thold]) -> 1 | G28: -0.3084547509 | H28: =--([Bin]>Table2[Thold]) -> 0 | J28: -0.17 | K28: 0.7115384615 | M28: -0.17 | N28: 0.6923076923 | P28: -0.17 | Q28: 0.7692307692 | S28: =ABS(0.5-SUM(INDEX(Table_3,rown),INDEX(Table_4,rown),INDEX(Table_1,rown))/3) -> 0.2243589744 | T28: =IF([Optimum]=MIN([Optimum]),0.5,NA()) -> 
A29: 0.1211788909 | B29: =--([Bin]>Table6[Thold]) -> 1 | D29: -0.07486869853 | E29: =--([Bin]>Table5[Thold]) -> 0 | G29: -0.1607837749 | H29: =--([Bin]>Table2[Thold]) -> 0 | J29: -0.168 | K29: 0.7115384615 | M29: -0.168 | N29: 0.6923076923 | P29: -0.168 | Q29: 0.7692307692 | S29: =ABS(0.5-SUM(INDEX(Table_3,rown),INDEX(Table_4,rown),INDEX(Table_1,rown))/3) -> 0.2243589744 | T29: =IF([Optimum]=MIN([Optimum]),0.5,NA()) -> 
A30: -0.4253247241 | B30: =--([Bin]>Table6[Thold]) -> 0 | D30: 0.04493696795 | E30: =--([Bin]>Table5[Thold]) -> 1 | G30: -0.1545467105 | H30: =--([Bin]>Table2[Thold]) -> 0 | J30: -0.166 | K30: 0.6923076923 | M30: -0.166 | N30: 0.6923076923 | P30: -0.166 | Q30: 0.7692307692 | S30: =ABS(0.5-SUM(INDEX(Table_3,rown),INDEX(Table_4,rown),INDEX(Table_1,rown))/3) -> 0.2179487179 | T30: =IF([Optimum]=MIN([Optimum]),0.5,NA()) -> 
A31: 0.3847120862 | B31: =--([Bin]>Table6[Thold]) -> 1 | D31: 0.4195764615 | E31: =--([Bin]>Table5[Thold]) -> 1 | G31: -0.2843898884 | H31: =--([Bin]>Table2[Thold]) -> 0 | J31: -0.164 | K31: 0.6923076923 | M31: -0.164 | N31: 0.6923076923 | P31: -0.164 | Q31: 0.7692307692 | S31: =ABS(0.5-SUM(INDEX(Table_3,rown),INDEX(Table_4,rown),INDEX(Table_1,rown))/3) -> 0.2179487179 | T31: =IF([Optimum]=MIN([Optimum]),0.5,NA()) -> 
A32: 0.1664435719 | B32: =--([Bin]>Table6[Thold]) -> 1 | D32: -0.3528405289 | E32: =--([Bin]>Table5[Thold]) -> 0 | G32: -0.0219838277 | H32: =--([Bin]>Table2[Thold]) -> 0 | J32: -0.162 | K32: 0.6923076923 | M32: -0.162 | N32: 0.6923076923 | P32: -0.162 | Q32: 0.7692307692 | S32: =ABS(0.5-SUM(INDEX(Table_3,rown),INDEX(Table_4,rown),INDEX(Table_1,rown))/3) -> 0.2179487179 | T32: =IF([Optimum]=MIN([Optimum]),0.5,NA()) -> 
A33: -0.1607840911 | B33: =--([Bin]>Table6[Thold]) -> 0 | D33: -0.3824224354 | E33: =--([Bin]>Table5[Thold]) -> 0 | G33: -0.1919974904 | H33: =--([Bin]>Table2[Thold]) -> 0 | J33: -0.16 | K33: 0.6730769231 | M33: -0.16 | N33: 0.6923076923 | P33: -0.16 | Q33: 0.75 | S33: =ABS(0.5-SUM(INDEX(Table_3,rown),INDEX(Table_4,rown),INDEX(Table_1,rown))/3) -> 0.2051282051 | T33: =IF([Optimum]=MIN([Optimum]),0.5,NA()) -> 
A34: 0.2314503536 | B34: =--([Bin]>Table6[Thold]) -> 1 | D34: 0.08539808702 | E34: =--([Bin]>Table5[Thold]) -> 1 | G34: 0.2141284187 | H34: =--([Bin]>Table2[Thold]) -> 1 | J34: -0.158 | K34: 0.6730769231 | M34: -0.158 | N34: 0.6923076923 | P34: -0.158 | Q34: 0.75 | S34: =ABS(0.5-SUM(INDEX(Table_3,rown),INDEX(Table_4,rown),INDEX(Table_1,rown))/3) -> 0.2051282051 | T34: =IF([Optimum]=MIN([Optimum]),0.5,NA()) -> 
A35: 0.05323599257 | B35: =--([Bin]>Table6[Thold]) -> 1 | D35: -0.3704263271 | E35: =--([Bin]>Table5[Thold]) -> 0 | G35: -0.07604375748 | H35: =--([Bin]>Table2[Thold]) -> 0 | J35: -0.156 | K35: 0.6730769231 | M35: -0.156 | N35: 0.6923076923 | P35: -0.156 | Q35: 0.75 | S35: =ABS(0.5-SUM(INDEX(Table_3,rown),INDEX(Table_4,rown),INDEX(Table_1,rown))/3) -> 0.2051282051 | T35: =IF([Optimum]=MIN([Optimum]),0.5,NA()) -> 
A36: -0.1873848994 | B36: =--([Bin]>Table6[Thold]) -> 0 | D36: -0.03045585538 | E36: =--([Bin]>Table5[Thold]) -> 0 | G36: 0.1012997085 | H36: =--([Bin]>Table2[Thold]) -> 1 | J36: -0.154 | K36: 0.6730769231 | M36: -0.154 | N36: 0.6923076923 | P36: -0.154 | Q36: 0.7307692308 | S36: =ABS(0.5-SUM(INDEX(Table_3,rown),INDEX(Table_4,rown),INDEX(Table_1,rown))/3) -> 0.1987179487 | T36: =IF([Optimum]=MIN([Optimum]),0.5,NA()) -> 
A37: -0.1183418779 | B37: =--([Bin]>Table6[Thold]) -> 0 | D37: -0.2564302707 | E37: =--([Bin]>Table5[Thold]) -> 0 | G37: 0.0594297845 | H37: =--([Bin]>Table2[Thold]) -> 1 | J37: -0.152 | K37: 0.6730769231 | M37: -0.152 | N37: 0.6923076923 | P37: -0.152 | Q37: 0.7307692308 | S37: =ABS(0.5-SUM(INDEX(Table_3,rown),INDEX(Table_4,rown),INDEX(Table_1,rown))/3) -> 0.1987179487 | T37: =IF([Optimum]=MIN([Optimum]),0.5,NA()) -> 
A38: -0.2558463872 | B38: =--([Bin]>Table6[Thold]) -> 0 | D38: -0.06477154707 | E38: =--([Bin]>Table5[Thold]) -> 0 | G38: -0.01633513127 | H38: =--([Bin]>Table2[Thold]) -> 0 | J38: -0.15 | K38: 0.6730769231 | M38: -0.15 | N38: 0.6923076923 | P38: -0.15 | Q38: 0.7307692308 | S38: =ABS(0.5-SUM(INDEX(Table_3,rown),INDEX(Table_4,rown),INDEX(Table_1,rown))/3) -> 0.1987179487 | T38: =IF([Optimum]=MIN([Optimum]),0.5,NA()) -> 
A39: -0.2362142755 | B39: =--([Bin]>Table6[Thold]) -> 0 | D39: 0.409529225 | E39: =--([Bin]>Table5[Thold]) -> 1 | G39: 0.2115966322 | H39: =--([Bin]>Table2[Thold]) -> 1 | J39: -0.148 | K39: 0.6730769231 | M39: -0.148 | N39: 0.6923076923 | P39: -0.148 | Q39: 0.7307692308 | S39: =ABS(0.5-SUM(INDEX(Table_3,rown),INDEX(Table_4,rown),INDEX(Table_1,rown))/3) -> 0.1987179487 | T39: =IF([Optimum]=MIN([Optimum]),0.5,NA()) -> 
A40: -0.2070666118 | B40: =--([Bin]>Table6[Thold]) -> 0 | D40: -0.4865675137 | E40: =--([Bin]>Table5[Thold]) -> 0 | G40: -0.1026034953 | H40: =--([Bin]>Table2[Thold]) -> 0 | J40: -0.146 | K40: 0.6730769231 | M40: -0.146 | N40: 0.6923076923 | P40: -0.146 | Q40: 0.7307692308 | S40: =ABS(0.5-SUM(INDEX(Table_3,rown),INDEX(Table_4,rown),INDEX(Table_1,rown))/3) -> 0.1987179487 | T40: =IF([Optimum]=MIN([Optimum]),0.5,NA()) -> 
A41: -0.1757419349 | B41: =--([Bin]>Table6[Thold]) -> 0 | D41: -0.05120295333 | E41: =--([Bin]>Table5[Thold]) -> 0 | G41: -0.3368796083 | H41: =--([Bin]>Table2[Thold]) -> 0 | J41: -0.144 | K41: 0.6730769231 | M41: -0.144 | N41: 0.6923076923 | P41: -0.144 | Q41: 0.7307692308 | S41: =ABS(0.5-SUM(INDEX(Table_3,rown),INDEX(Table_4,rown),INDEX(Table_1,rown))/3) -> 0.1987179487 | T41: =IF([Optimum]=MIN([Optimum]),0.5,NA()) -> 
A42: -0.1678988383 | B42: =--([Bin]>Table6[Thold]) -> 0 | D42: -0.03320498672 | E42: =--([Bin]>Table5[Thold]) -> 0 | G42: 0.2249402362 | H42: =--([Bin]>Table2[Thold]) -> 1 | J42: -0.142 | K42: 0.6538461538 | M42: -0.142 | N42: 0.6923076923 | P42: -0.142 | Q42: 0.7307692308 | S42: =ABS(0.5-SUM(INDEX(Table_3,rown),INDEX(Table_4,rown),INDEX(Table_1,rown))/3) -> 0.1923076923 | T42: =IF([Optimum]=MIN([Optimum]),0.5,NA()) -> 
A43: -0.004761820562 | B43: =--([Bin]>Table6[Thold]) -> 1 | D43: 0.1587580131 | E43: =--([Bin]>Table5[Thold]) -> 1 | G43: -0.3104152887 | H43: =--([Bin]>Table2[Thold]) -> 0 | J43: -0.14 | K43: 0.6538461538 | M43: -0.14 | N43: 0.6923076923 | P43: -0.14 | Q43: 0.7307692308 | S43: =ABS(0.5-SUM(INDEX(Table_3,rown),INDEX(Table_4,rown),INDEX(Table_1,rown))/3) -> 0.1923076923 | T43: =IF([Optimum]=MIN([Optimum]),0.5,NA()) -> 
A44: 0.2936004003 | B44: =--([Bin]>Table6[Thold]) -> 1 | D44: -0.06333618114 | E44: =--([Bin]>Table5[Thold]) -> 0 | G44: -0.249082801 | H44: =--([Bin]>Table2[Thold]) -> 0 | J44: -0.138 | K44: 0.6538461538 | M44: -0.138 | N44: 0.6923076923 | P44: -0.138 | Q44: 0.7307692308 | S44: =ABS(0.5-SUM(INDEX(Table_3,rown),INDEX(Table_4,rown),INDEX(Table_1,rown))/3) -> 0.1923076923 | T44: =IF([Optimum]=MIN([Optimum]),0.5,NA()) -> 
A45: 0.4309627583 | B45: =--([Bin]>Table6[Thold]) -> 1 | D45: 0.1063899767 | E45: =--([Bin]>Table5[Thold]) -> 1 | G45: -0.04971224961 | H45: =--([Bin]>Table2[Thold]) -> 0 | J45: -0.136 | K45: 0.6538461538 | M45: -0.136 | N45: 0.6923076923 | P45: -0.136 | Q45: 0.7307692308 | S45: =ABS(0.5-SUM(INDEX(Table_3,rown),INDEX(Table_4,rown),INDEX(Table_1,rown))/3) -> 0.1923076923 | T45: =IF([Optimum]=MIN([Optimum]),0.5,NA()) -> 
A46: 0.4350638725 | B46: =--([Bin]>Table6[Thold]) -> 1 | D46: 0.0971072722 | E46: =--([Bin]>Table5[Thold]) -> 1 | G46: -0.1074616192 | H46: =--([Bin]>Table2[Thold]) -> 0 | J46: -0.134 | K46: 0.6538461538 | M46: -0.134 | N46: 0.6923076923 | P46: -0.134 | Q46: 0.7307692308 | S46: =ABS(0.5-SUM(INDEX(Table_3,rown),INDEX(Table_4,rown),INDEX(Table_1,rown))/3) -> 0.1923076923 | T46: =IF([Optimum]=MIN([Optimum]),0.5,NA()) -> 
A47: -0.277336535 | B47: =--([Bin]>Table6[Thold]) -> 0 | D47: -0.4690793881 | E47: =--([Bin]>Table5[Thold]) -> 0 | G47: -0.4588732965 | H47: =--([Bin]>Table2[Thold]) -> 0 | J47: -0.132 | K47: 0.6538461538 | M47: -0.132 | N47: 0.6923076923 | P47: -0.132 | Q47: 0.7307692308 | S47: =ABS(0.5-SUM(INDEX(Table_3,rown),INDEX(Table_4,rown),INDEX(Table_1,rown))/3) -> 0.1923076923 | T47: =IF([Optimum]=MIN([Optimum]),0.5,NA()) -> 
A48: 0.05421075981 | B48: =--([Bin]>Table6[Thold]) -> 1 | D48: -0.3049975531 | E48: =--([Bin]>Table5[Thold]) -> 0 | G48: -0.3291145381 | H48: =--([Bin]>Table2[Thold]) -> 0 | J48: -0.13 | K48: 0.6538461538 | M48: -0.13 | N48: 0.6923076923 | P48: -0.13 | Q48: 0.7307692308 | S48: =ABS(0.5-SUM(INDEX(Table_3,rown),INDEX(Table_4,rown),INDEX(Table_1,rown))/3) -> 0.1923076923 | T48: =IF([Optimum]=MIN([Optimum]),0.5,NA()) -> 
A49: 0.4374545292 | B49: =--([Bin]>Table6[Thold]) -> 1 | D49: -0.3088059583 | E49: =--([Bin]>Table5[Thold]) -> 0 | G49: 0.07215069459 | H49: =--([Bin]>Table2[Thold]) -> 1 | J49: -0.128 | K49: 0.6538461538 | M49: -0.128 | N49: 0.6923076923 | P49: -0.128 | Q49: 0.7307692308 | S49: =ABS(0.5-SUM(INDEX(Table_3,rown),INDEX(Table_4,rown),INDEX(Table_1,rown))/3) -> 0.1923076923 | T49: =IF([Optimum]=MIN([Optimum]),0.5,NA()) -> 
A50: 0.1901465744 | B50: =--([Bin]>Table6[Thold]) -> 1 | D50: 0.1590868184 | E50: =--([Bin]>Table5[Thold]) -> 1 | G50: -0.4325738654 | H50: =--([Bin]>Table2[Thold]) -> 0 | J50: -0.126 | K50: 0.6346153846 | M50: -0.126 | N50: 0.6923076923 | P50: -0.126 | Q50: 0.7307692308 | S50: =ABS(0.5-SUM(INDEX(Table_3,rown),INDEX(Table_4,rown),INDEX(Table_1,rown))/3) -> 0.1858974359 | T50: =IF([Optimum]=MIN([Optimum]),0.5,NA()) -> 
A51: 0.2321918771 | B51: =--([Bin]>Table6[Thold]) -> 1 | D51: 0.3296150455 | E51: =--([Bin]>Table5[Thold]) -> 1 | G51: 0.02211658392 | H51: =--([Bin]>Table2[Thold]) -> 1 | J51: -0.124 | K51: 0.6346153846 | M51: -0.124 | N51: 0.6923076923 | P51: -0.124 | Q51: 0.7307692308 | S51: =ABS(0.5-SUM(INDEX(Table_3,rown),INDEX(Table_4,rown),INDEX(Table_1,rown))/3) -> 0.1858974359 | T51: =IF([Optimum]=MIN([Optimum]),0.5,NA()) -> 
A52: 0.2769561368 | B52: =--([Bin]>Table6[Thold]) -> 1 | D52: -0.475965728 | E52: =--([Bin]>Table5[Thold]) -> 0 | G52: 0.01754770656 | H52: =--([Bin]>Table2[Thold]) -> 1 | J52: -0.122 | K52: 0.6346153846 | M52: -0.122 | N52: 0.6923076923 | P52: -0.122 | Q52: 0.7115384615 | S52: =ABS(0.5-SUM(INDEX(Table_3,rown),INDEX(Table_4,rown),INDEX(Table_1,rown))/3) -> 0.1794871795 | T52: =IF([Optimum]=MIN([Optimum]),0.5,NA()) -> 
A53: -0.1203289172 | B53: =--([Bin]>Table6[Thold]) -> 0 | D53: 0.4839773098 | E53: =--([Bin]>Table5[Thold]) -> 1 | G53: -0.0272032721 | H53: =--([Bin]>Table2[Thold]) -> 0 | J53: -0.12 | K53: 0.6153846154 | M53: -0.12 | N53: 0.6923076923 | P53: -0.12 | Q53: 0.7115384615 | S53: =ABS(0.5-SUM(INDEX(Table_3,rown),INDEX(Table_4,rown),INDEX(Table_1,rown))/3) -> 0.1730769231 | T53: =IF([Optimum]=MIN([Optimum]),0.5,NA()) -> 
A54: -0.4694944475 | B54: =--([Bin]>Table6[Thold]) -> 0 | D54: 0.01487479407 | E54: =--([Bin]>Table5[Thold]) -> 1 | G54: 0.1736153951 | H54: =--([Bin]>Table2[Thold]) -> 1 | J54: -0.118 | K54: 0.5961538462 | M54: -0.118 | N54: 0.6923076923 | P54: -0.118 | Q54: 0.7115384615 | S54: =ABS(0.5-SUM(INDEX(Table_3,rown),INDEX(Table_4,rown),INDEX(Table_1,rown))/3) -> 0.1666666667 | T54: =IF([Optimum]=MIN([Optimum]),0.5,NA()) -> 
A55: 0.08867272878 | B55: =--([Bin]>Table6[Thold]) -> 1 | D55: 0.1720629643 | E55: =--([Bin]>Table5[Thold]) -> 1 | G55: 0.007128737572 | H55: =--([Bin]>Table2[Thold]) -> 1 | J55: -0.116 | K55: 0.5769230769 | M55: -0.116 | N55: 0.6923076923 | P55: -0.116 | Q55: 0.7115384615 | S55: =ABS(0.5-SUM(INDEX(Table_3,rown),INDEX(Table_4,rown),INDEX(Table_1,rown))/3) -> 0.1602564103 | T55: =IF([Optimum]=MIN([Optimum]),0.5,NA()) -> 
A56: 0.4097194226 | B56: =--([Bin]>Table6[Thold]) -> 1 | D56: -0.3070389346 | E56: =--([Bin]>Table5[Thold]) -> 0 | G56: -0.2864392119 | H56: =--([Bin]>Table2[Thold]) -> 0 | J56: -0.114 | K56: 0.5769230769 | M56: -0.114 | N56: 0.6923076923 | P56: -0.114 | Q56: 0.7115384615 | S56: =ABS(0.5-SUM(INDEX(Table_3,rown),INDEX(Table_4,rown),INDEX(Table_1,rown))/3) -> 0.1602564103 | T56: =IF([Optimum]=MIN([Optimum]),0.5,NA()) -> 
A57: 0.316343034 | B57: =--([Bin]>Table6[Thold]) -> 1 | D57: 0.1146221608 | E57: =--([Bin]>Table5[Thold]) -> 1 | G57: 0.1755504622 | H57: =--([Bin]>Table2[Thold]) -> 1 | J57: -0.112 | K57: 0.5769230769 | M57: -0.112 | N57: 0.6923076923 | P57: -0.112 | Q57: 0.7115384615 | S57: =ABS(0.5-SUM(INDEX(Table_3,rown),INDEX(Table_4,rown),INDEX(Table_1,rown))/3) -> 0.1602564103 | T57: =IF([Optimum]=MIN([Optimum]),0.5,NA()) -> 
A58: 0.2538867459 | B58: =--([Bin]>Table6[Thold]) -> 1 | D58: -0.3397156303 | E58: =--([Bin]>Table5[Thold]) -> 0 | G58: 0.01411239333 | H58: =--([Bin]>Table2[Thold]) -> 1 | J58: -0.11 | K58: 0.5769230769 | M58: -0.11 | N58: 0.6923076923 | P58: -0.11 | Q58: 0.7115384615 | S58: =ABS(0.5-SUM(INDEX(Table_3,rown),INDEX(Table_4,rown),INDEX(Table_1,rown))/3) -> 0.1602564103 | T58: =IF([Optimum]=MIN([Optimum]),0.5,NA()) -> 
A59: -0.176388989 | B59: =--([Bin]>Table6[Thold]) -> 0 | D59: 0.3330386475 | E59: =--([Bin]>Table5[Thold]) -> 1 | G59: 0.4120031128 | H59: =--([Bin]>Table2[Thold]) -> 1 | J59: -0.108 | K59: 0.5769230769 | M59: -0.108 | N59: 0.6923076923 | P59: -0.108 | Q59: 0.7115384615 | S59: =ABS(0.5-SUM(INDEX(Table_3,rown),INDEX(Table_4,rown),INDEX(Table_1,rown))/3) -> 0.1602564103 | T59: =IF([Optimum]=MIN([Optimum]),0.5,NA()) -> 
A60: -0.342111626 | B60: =--([Bin]>Table6[Thold]) -> 0 | D60: -0.06891098173 | E60: =--([Bin]>Table5[Thold]) -> 0 | G60: -0.01507370129 | H60: =--([Bin]>Table2[Thold]) -> 0 | J60: -0.106 | K60: 0.5576923077 | M60: -0.106 | N60: 0.6923076923 | P60: -0.106 | Q60: 0.6923076923 | S60: =ABS(0.5-SUM(INDEX(Table_3,rown),INDEX(Table_4,rown),INDEX(Table_1,rown))/3) -> 0.1474358974 | T60: =IF([Optimum]=MIN([Optimum]),0.5,NA()) -> 
A61: 0.1320367782 | B61: =--([Bin]>Table6[Thold]) -> 1 | D61: -0.2935224276 | E61: =--([Bin]>Table5[Thold]) -> 0 | G61: -0.08522018224 | H61: =--([Bin]>Table2[Thold]) -> 0 | J61: -0.104 | K61: 0.5576923077 | M61: -0.104 | N61: 0.6923076923 | P61: -0.104 | Q61: 0.6923076923 | S61: =ABS(0.5-SUM(INDEX(Table_3,rown),INDEX(Table_4,rown),INDEX(Table_1,rown))/3) -> 0.1474358974 | T61: =IF([Optimum]=MIN([Optimum]),0.5,NA()) -> 
A62: -0.06181107065 | B62: =--([Bin]>Table6[Thold]) -> 0 | D62: 0.01213914156 | E62: =--([Bin]>Table5[Thold]) -> 1 | G62: 0.207929294 | H62: =--([Bin]>Table2[Thold]) -> 1 | J62: -0.102 | K62: 0.5576923077 | M62: -0.102 | N62: 0.6923076923 | P62: -0.102 | Q62: 0.6730769231 | S62: =ABS(0.5-SUM(INDEX(Table_3,rown),INDEX(Table_4,rown),INDEX(Table_1,rown))/3) -> 0.141025641 | T62: =IF([Optimum]=MIN([Optimum]),0.5,NA()) -> 
A63: -0.1420394843 | B63: =--([Bin]>Table6[Thold]) -> 0 | D63: 0.4618958257 | E63: =--([Bin]>Table5[Thold]) -> 1 | G63: 0.2267019521 | H63: =--([Bin]>Table2[Thold]) -> 1 | J63: -0.1 | K63: 0.5576923077 | M63: -0.1 | N63: 0.6923076923 | P63: -0.1 | Q63: 0.6730769231 | S63: =ABS(0.5-SUM(INDEX(Table_3,rown),INDEX(Table_4,rown),INDEX(Table_1,rown))/3) -> 0.141025641 | T63: =IF([Optimum]=MIN([Optimum]),0.5,NA()) -> 
A64: 0.2144986504 | B64: =--([Bin]>Table6[Thold]) -> 1 | D64: 0.3701251778 | E64: =--([Bin]>Table5[Thold]) -> 1 | G64: -0.06240742038 | H64: =--([Bin]>Table2[Thold]) -> 0 | J64: -0.098 | K64: 0.5576923077 | M64: -0.098 | N64: 0.6923076923 | P64: -0.098 | Q64: 0.6730769231 | S64: =ABS(0.5-SUM(INDEX(Table_3,rown),INDEX(Table_4,rown),INDEX(Table_1,rown))/3) -> 0.141025641 | T64: =IF([Optimum]=MIN([Optimum]),0.5,NA()) -> 
J65: -0.096 | K65: 0.5576923077 | M65: -0.096 | N65: 0.6923076923 | P65: -0.096 | Q65: 0.6730769231 | S65: =ABS(0.5-SUM(INDEX(Table_3,rown),INDEX(Table_4,rown),INDEX(Table_1,rown))/3) -> 0.141025641 | T65: =IF([Optimum]=MIN([Optimum]),0.5,NA()) -> 
J66: -0.094 | K66: 0.5576923077 | M66: -0.094 | N66: 0.6730769231 | P66: -0.094 | Q66: 0.6730769231 | S66: =ABS(0.5-SUM(INDEX(Table_3,rown),INDEX(Table_4,rown),INDEX(Table_1,rown))/3) -> 0.1346153846 | T66: =IF([Optimum]=MIN([Optimum]),0.5,NA()) -> 
J67: -0.092 | K67: 0.5576923077 | M67: -0.092 | N67: 0.6730769231 | P67: -0.092 | Q67: 0.6730769231 | S67: =ABS(0.5-SUM(INDEX(Table_3,rown),INDEX(Table_4,rown),INDEX(Table_1,rown))/3) -> 0.1346153846 | T67: =IF([Optimum]=MIN([Optimum]),0.5,NA()) -> 
J68: -0.09 | K68: 0.5576923077 | M68: -0.09 | N68: 0.6730769231 | P68: -0.09 | Q68: 0.6730769231 | S68: =ABS(0.5-SUM(INDEX(Table_3,rown),INDEX(Table_4,rown),INDEX(Table_1,rown))/3) -> 0.1346153846 | T68: =IF([Optimum]=MIN([Optimum]),0.5,NA()) -> 
J69: -0.088 | K69: 0.5576923077 | M69: -0.088 | N69: 0.6730769231 | P69: -0.088 | Q69: 0.6730769231 | S69: =ABS(0.5-SUM(INDEX(Table_3,rown),INDEX(Table_4,rown),INDEX(Table_1,rown))/3) -> 0.1346153846 | T69: =IF([Optimum]=MIN([Optimum]),0.5,NA()) -> 
J70: -0.086 | K70: 0.5384615385 | M70: -0.086 | N70: 0.6730769231 | P70: -0.086 | Q70: 0.6730769231 | S70: =ABS(0.5-SUM(INDEX(Table_3,rown),INDEX(Table_4,rown),INDEX(Table_1,rown))/3) -> 0.1282051282 | T70: =IF([Optimum]=MIN([Optimum]),0.5,NA()) -> 
J71: -0.084 | K71: 0.5384615385 | M71: -0.084 | N71: 0.6730769231 | P71: -0.084 | Q71: 0.6538461538 | S71: =ABS(0.5-SUM(INDEX(Table_3,rown),INDEX(Table_4,rown),INDEX(Table_1,rown))/3) -> 0.1217948718 | T71: =IF([Optimum]=MIN([Optimum]),0.5,NA()) -> 
J72: -0.082 | K72: 0.5384615385 | M72: -0.082 | N72: 0.6730769231 | P72: -0.082 | Q72: 0.6538461538 | S72: =ABS(0.5-SUM(INDEX(Table_3,rown),INDEX(Table_4,rown),INDEX(Table_1,rown))/3) -> 0.1217948718 | T72: =IF([Optimum]=MIN([Optimum]),0.5,NA()) -> 
J73: -0.08 | K73: 0.5384615385 | M73: -0.08 | N73: 0.6730769231 | P73: -0.08 | Q73: 0.6538461538 | S73: =ABS(0.5-SUM(INDEX(Table_3,rown),INDEX(Table_4,rown),INDEX(Table_1,rown))/3) -> 0.1217948718 | T73: =IF([Optimum]=MIN([Optimum]),0.5,NA()) -> 
J74: -0.078 | K74: 0.5384615385 | M74: -0.078 | N74: 0.6730769231 | P74: -0.078 | Q74: 0.6538461538 | S74: =ABS(0.5-SUM(INDEX(Table_3,rown),INDEX(Table_4,rown),INDEX(Table_1,rown))/3) -> 0.1217948718 | T74: =IF([Optimum]=MIN([Optimum]),0.5,NA()) -> 
J75: -0.076 | K75: 0.5384615385 | M75: -0.076 | N75: 0.6730769231 | P75: -0.076 | Q75: 0.6346153846 | S75: =ABS(0.5-SUM(INDEX(Table_3,rown),INDEX(Table_4,rown),INDEX(Table_1,rown))/3) -> 0.1153846154 | T75: =IF([Optimum]=MIN([Optimum]),0.5,NA()) -> 
J76: -0.074 | K76: 0.5384615385 | M76: -0.074 | N76: 0.6538461538 | P76: -0.074 | Q76: 0.6346153846 | S76: =ABS(0.5-SUM(INDEX(Table_3,rown),INDEX(Table_4,rown),INDEX(Table_1,rown))/3) -> 0.108974359 | T76: =IF([Optimum]=MIN([Optimum]),0.5,NA()) -> 
J77: -0.072 | K77: 0.5384615385 | M77: -0.072 | N77: 0.6538461538 | P77: -0.072 | Q77: 0.6346153846 | S77: =ABS(0.5-SUM(INDEX(Table_3,rown),INDEX(Table_4,rown),INDEX(Table_1,rown))/3) -> 0.108974359 | T77: =IF([Optimum]=MIN([Optimum]),0.5,NA()) -> 
J78: -0.07 | K78: 0.5384615385 | M78: -0.07 | N78: 0.6346153846 | P78: -0.07 | Q78: 0.6346153846 | S78: =ABS(0.5-SUM(INDEX(Table_3,rown),INDEX(Table_4,rown),INDEX(Table_1,rown))/3) -> 0.1025641026 | T78: =IF([Optimum]=MIN([Optimum]),0.5,NA()) -> 
J79: -0.068 | K79: 0.5384615385 | M79: -0.068 | N79: 0.6153846154 | P79: -0.068 | Q79: 0.6346153846 | S79: =ABS(0.5-SUM(INDEX(Table_3,rown),INDEX(Table_4,rown),INDEX(Table_1,rown))/3) -> 0.09615384615 | T79: =IF([Optimum]=MIN([Optimum]),0.5,NA()) -> 
J80: -0.066 | K80: 0.5384615385 | M80: -0.066 | N80: 0.6153846154 | P80: -0.066 | Q80: 0.6346153846 | S80: =ABS(0.5-SUM(INDEX(Table_3,rown),INDEX(Table_4,rown),INDEX(Table_1,rown))/3) -> 0.09615384615 | T80: =IF([Optimum]=MIN([Optimum]),0.5,NA()) -> 
J81: -0.064 | K81: 0.5384615385 | M81: -0.064 | N81: 0.5961538462 | P81: -0.064 | Q81: 0.6346153846 | S81: =ABS(0.5-SUM(INDEX(Table_3,rown),INDEX(Table_4,rown),INDEX(Table_1,rown))/3) -> 0.08974358974 | T81: =IF([Optimum]=MIN([Optimum]),0.5,NA()) -> 
J82: -0.062 | K82: 0.5384615385 | M82: -0.062 | N82: 0.5769230769 | P82: -0.062 | Q82: 0.6153846154 | S82: =ABS(0.5-SUM(INDEX(Table_3,rown),INDEX(Table_4,rown),INDEX(Table_1,rown))/3) -> 0.07692307692 | T82: =IF([Optimum]=MIN([Optimum]),0.5,NA()) -> 
J83: -0.06 | K83: 0.5192307692 | M83: -0.06 | N83: 0.5769230769 | P83: -0.06 | Q83: 0.6153846154 | S83: =ABS(0.5-SUM(INDEX(Table_3,rown),INDEX(Table_4,rown),INDEX(Table_1,rown))/3) -> 0.07051282051 | T83: =IF([Optimum]=MIN([Optimum]),0.5,NA()) -> 
J84: -0.058 | K84: 0.5192307692 | M84: -0.058 | N84: 0.5769230769 | P84: -0.058 | Q84: 0.6153846154 | S84: =ABS(0.5-SUM(INDEX(Table_3,rown),INDEX(Table_4,rown),INDEX(Table_1,rown))/3) -> 0.07051282051 | T84: =IF([Optimum]=MIN([Optimum]),0.5,NA()) -> 
J85: -0.056 | K85: 0.5192307692 | M85: -0.056 | N85: 0.5769230769 | P85: -0.056 | Q85: 0.6153846154 | S85: =ABS(0.5-SUM(INDEX(Table_3,rown),INDEX(Table_4,rown),INDEX(Table_1,rown))/3) -> 0.07051282051 | T85: =IF([Optimum]=MIN([Optimum]),0.5,NA()) -> 
J86: -0.054 | K86: 0.5192307692 | M86: -0.054 | N86: 0.5769230769 | P86: -0.054 | Q86: 0.6153846154 | S86: =ABS(0.5-SUM(INDEX(Table_3,rown),INDEX(Table_4,rown),INDEX(Table_1,rown))/3) -> 0.07051282051 | T86: =IF([Optimum]=MIN([Optimum]),0.5,NA()) -> 
J87: -0.052 | K87: 0.5192307692 | M87: -0.052 | N87: 0.5769230769 | P87: -0.052 | Q87: 0.6153846154 | S87: =ABS(0.5-SUM(INDEX(Table_3,rown),INDEX(Table_4,rown),INDEX(Table_1,rown))/3) -> 0.07051282051 | T87: =IF([Optimum]=MIN([Optimum]),0.5,NA()) -> 
J88: -0.05 | K88: 0.5192307692 | M88: -0.05 | N88: 0.5576923077 | P88: -0.05 | Q88: 0.6153846154 | S88: =ABS(0.5-SUM(INDEX(Table_3,rown),INDEX(Table_4,rown),INDEX(Table_1,rown))/3) -> 0.0641025641 | T88: =IF([Optimum]=MIN([Optimum]),0.5,NA()) -> 
J89: -0.048 | K89: 0.5192307692 | M89: -0.048 | N89: 0.5576923077 | P89: -0.048 | Q89: 0.5961538462 | S89: =ABS(0.5-SUM(INDEX(Table_3,rown),INDEX(Table_4,rown),INDEX(Table_1,rown))/3) -> 0.05769230769 | T89: =IF([Optimum]=MIN([Optimum]),0.5,NA()) -> 
J90: -0.046 | K90: 0.5192307692 | M90: -0.046 | N90: 0.5576923077 | P90: -0.046 | Q90: 0.5769230769 | S90: =ABS(0.5-SUM(INDEX(Table_3,rown),INDEX(Table_4,rown),INDEX(Table_1,rown))/3) -> 0.05128205128 | T90: =IF([Optimum]=MIN([Optimum]),0.5,NA()) -> 
J91: -0.044 | K91: 0.5192307692 | M91: -0.044 | N91: 0.5576923077 | P91: -0.044 | Q91: 0.5769230769 | S91: =ABS(0.5-SUM(INDEX(Table_3,rown),INDEX(Table_4,rown),INDEX(Table_1,rown))/3) -> 0.05128205128 | T91: =IF([Optimum]=MIN([Optimum]),0.5,NA()) -> 
J92: -0.042 | K92: 0.5192307692 | M92: -0.042 | N92: 0.5576923077 | P92: -0.042 | Q92: 0.5769230769 | S92: =ABS(0.5-SUM(INDEX(Table_3,rown),INDEX(Table_4,rown),INDEX(Table_1,rown))/3) -> 0.05128205128 | T92: =IF([Optimum]=MIN([Optimum]),0.5,NA()) -> 
J93: -0.04 | K93: 0.5192307692 | M93: -0.04 | N93: 0.5576923077 | P93: -0.04 | Q93: 0.5769230769 | S93: =ABS(0.5-SUM(INDEX(Table_3,rown),INDEX(Table_4,rown),INDEX(Table_1,rown))/3) -> 0.05128205128 | T93: =IF([Optimum]=MIN([Optimum]),0.5,NA()) -> 
J94: -0.038 | K94: 0.5192307692 | M94: -0.038 | N94: 0.5576923077 | P94: -0.038 | Q94: 0.5769230769 | S94: =ABS(0.5-SUM(INDEX(Table_3,rown),INDEX(Table_4,rown),INDEX(Table_1,rown))/3) -> 0.05128205128 | T94: =IF([Optimum]=MIN([Optimum]),0.5,NA()) -> 
J95: -0.036 | K95: 0.5192307692 | M95: -0.036 | N95: 0.5576923077 | P95: -0.036 | Q95: 0.5769230769 | S95: =ABS(0.5-SUM(INDEX(Table_3,rown),INDEX(Table_4,rown),INDEX(Table_1,rown))/3) -> 0.05128205128 | T95: =IF([Optimum]=MIN([Optimum]),0.5,NA()) -> 
J96: -0.034 | K96: 0.5192307692 | M96: -0.034 | N96: 0.5576923077 | P96: -0.034 | Q96: 0.5769230769 | S96: =ABS(0.5-SUM(INDEX(Table_3,rown),INDEX(Table_4,rown),INDEX(Table_1,rown))/3) -> 0.05128205128 | T96: =IF([Optimum]=MIN([Optimum]),0.5,NA()) -> 
J97: -0.032 | K97: 0.5192307692 | M97: -0.032 | N97: 0.5384615385 | P97: -0.032 | Q97: 0.5769230769 | S97: =ABS(0.5-SUM(INDEX(Table_3,rown),INDEX(Table_4,rown),INDEX(Table_1,rown))/3) -> 0.04487179487 | T97: =IF([Optimum]=MIN([Optimum]),0.5,NA()) -> 
J98: -0.03 | K98: 0.5192307692 | M98: -0.03 | N98: 0.5192307692 | P98: -0.03 | Q98: 0.5769230769 | S98: =ABS(0.5-SUM(INDEX(Table_3,rown),INDEX(Table_4,rown),INDEX(Table_1,rown))/3) -> 0.03846153846 | T98: =IF([Optimum]=MIN([Optimum]),0.5,NA()) -> 
J99: -0.028 | K99: 0.5 | M99: -0.028 | N99: 0.5192307692 | P99: -0.028 | Q99: 0.5769230769 | S99: =ABS(0.5-SUM(INDEX(Table_3,rown),INDEX(Table_4,rown),INDEX(Table_1,rown))/3) -> 0.03205128205 | T99: =IF([Optimum]=MIN([Optimum]),0.5,NA()) -> 
J100: -0.026 | K100: 0.5 | M100: -0.026 | N100: 0.5192307692 | P100: -0.026 | Q100: 0.5576923077 | S100: =ABS(0.5-SUM(INDEX(Table_3,rown),INDEX(Table_4,rown),INDEX(Table_1,rown))/3) -> 0.02564102564 | T100: =IF([Optimum]=MIN([Optimum]),0.5,NA()) -> 
J101: -0.024 | K101: 0.5 | M101: -0.024 | N101: 0.5192307692 | P101: -0.024 | Q101: 0.5576923077 | S101: =ABS(0.5-SUM(INDEX(Table_3,rown),INDEX(Table_4,rown),INDEX(Table_1,rown))/3) -> 0.02564102564 | T101: =IF([Optimum]=MIN([Optimum]),0.5,NA()) -> 
J102: -0.022 | K102: 0.5 | M102: -0.022 | N102: 0.5192307692 | P102: -0.022 | Q102: 0.5576923077 | S102: =ABS(0.5-SUM(INDEX(Table_3,rown),INDEX(Table_4,rown),INDEX(Table_1,rown))/3) -> 0.02564102564 | T102: =IF([Optimum]=MIN([Optimum]),0.5,NA()) -> 
J103: -0.02 | K103: 0.5 | M103: -0.02 | N103: 0.5192307692 | P103: -0.02 | Q103: 0.5384615385 | S103: =ABS(0.5-SUM(INDEX(Table_3,rown),INDEX(Table_4,rown),INDEX(Table_1,rown))/3) -> 0.01923076923 | T103: =IF([Optimum]=MIN([Optimum]),0.5,NA()) -> 
J104: -0.018 | K104: 0.5 | M104: -0.018 | N104: 0.5 | P104: -0.018 | Q104: 0.5384615385 | S104: =ABS(0.5-SUM(INDEX(Table_3,rown),INDEX(Table_4,rown),INDEX(Table_1,rown))/3) -> 0.01282051282 | T104: =IF([Optimum]=MIN([Optimum]),0.5,NA()) -> 
J105: -0.016 | K105: 0.5 | M105: -0.016 | N105: 0.5 | P105: -0.016 | Q105: 0.5192307692 | S105: =ABS(0.5-SUM(INDEX(Table_3,rown),INDEX(Table_4,rown),INDEX(Table_1,rown))/3) -> 0.00641025641 | T105: =IF([Optimum]=MIN([Optimum]),0.5,NA()) -> 
J106: -0.014 | K106: 0.5 | M106: -0.014 | N106: 0.5 | P106: -0.014 | Q106: 0.5 | S106: =ABS(0.5-SUM(INDEX(Table_3,rown),INDEX(Table_4,rown),INDEX(Table_1,rown))/3) -> 0 | T106: =IF([Optimum]=MIN([Optimum]),0.5,NA()) -> 0.5
J107: -0.012 | K107: 0.5 | M107: -0.012 | N107: 0.5 | P107: -0.012 | Q107: 0.5 | S107: =ABS(0.5-SUM(INDEX(Table_3,rown),INDEX(Table_4,rown),INDEX(Table_1,rown))/3) -> 0 | T107: =IF([Optimum]=MIN([Optimum]),0.5,NA()) -> 0.5
J108: -0.01 | K108: 0.5 | M108: -0.01 | N108: 0.5 | P108: -0.01 | Q108: 0.5 | S108: =ABS(0.5-SUM(INDEX(Table_3,rown),INDEX(Table_4,rown),INDEX(Table_1,rown))/3) -> 0 | T108: =IF([Optimum]=MIN([Optimum]),0.5,NA()) -> 0.5
J109: -0.008 | K109: 0.5 | M109: -0.008 | N109: 0.5 | P109: -0.008 | Q109: 0.5 | S109: =ABS(0.5-SUM(INDEX(Table_3,rown),INDEX(Table_4,rown),INDEX(Table_1,rown))/3) -> 0 | T109: =IF([Optimum]=MIN([Optimum]),0.5,NA()) -> 0.5
J110: -0.006 | K110: 0.5 | M110: -0.006 | N110: 0.5 | P110: -0.006 | Q110: 0.5 | S110: =ABS(0.5-SUM(INDEX(Table_3,rown),INDEX(Table_4,rown),INDEX(Table_1,rown))/3) -> 0 | T110: =IF([Optimum]=MIN([Optimum]),0.5,NA()) -> 0.5
J111: -0.004 | K111: 0.4807692308 | M111: -0.004 | N111: 0.5 | P111: -0.004 | Q111: 0.5 | S111: =ABS(0.5-SUM(INDEX(Table_3,rown),INDEX(Table_4,rown),INDEX(Table_1,rown))/3) -> 0.00641025641 | T111: =IF([Optimum]=MIN([Optimum]),0.5,NA()) -> 
J112: -0.002 | K112: 0.4807692308 | M112: -0.002 | N112: 0.5 | P112: -0.002 | Q112: 0.5 | S112: =ABS(0.5-SUM(INDEX(Table_3,rown),INDEX(Table_4,rown),INDEX(Table_1,rown))/3) -> 0.00641025641 | T112: =IF([Optimum]=MIN([Optimum]),0.5,NA()) -> 
J113: 0 | K113: 0.4807692308 | M113: 0 | N113: 0.5 | P113: 0 | Q113: 0.5 | S113: =ABS(0.5-SUM(INDEX(Table_3,rown),INDEX(Table_4,rown),INDEX(Table_1,rown))/3) -> 0.00641025641 | T113: =IF([Optimum]=MIN([Optimum]),0.5,NA()) -> 
J114: 0.002 | K114: 0.4807692308 | M114: 0.002 | N114: 0.5 | P114: 0.002 | Q114: 0.5 | S114: =ABS(0.5-SUM(INDEX(Table_3,rown),INDEX(Table_4,rown),INDEX(Table_1,rown))/3) -> 0.00641025641 | T114: =IF([Optimum]=MIN([Optimum]),0.5,NA()) -> 
J115: 0.004 | K115: 0.4807692308 | M115: 0.004 | N115: 0.5 | P115: 0.004 | Q115: 0.5 | S115: =ABS(0.5-SUM(INDEX(Table_3,rown),INDEX(Table_4,rown),INDEX(Table_1,rown))/3) -> 0.00641025641 | T115: =IF([Optimum]=MIN([Optimum]),0.5,NA()) -> 
J116: 0.006 | K116: 0.4807692308 | M116: 0.006 | N116: 0.5 | P116: 0.006 | Q116: 0.5 | S116: =ABS(0.5-SUM(INDEX(Table_3,rown),INDEX(Table_4,rown),INDEX(Table_1,rown))/3) -> 0.00641025641 | T116: =IF([Optimum]=MIN([Optimum]),0.5,NA()) -> 
J117: 0.008 | K117: 0.4807692308 | M117: 0.008 | N117: 0.5 | P117: 0.008 | Q117: 0.4807692308 | S117: =ABS(0.5-SUM(INDEX(Table_3,rown),INDEX(Table_4,rown),INDEX(Table_1,rown))/3) -> 0.01282051282 | T117: =IF([Optimum]=MIN([Optimum]),0.5,NA()) -> 
J118: 0.01 | K118: 0.4807692308 | M118: 0.01 | N118: 0.5 | P118: 0.01 | Q118: 0.4615384615 | S118: =ABS(0.5-SUM(INDEX(Table_3,rown),INDEX(Table_4,rown),INDEX(Table_1,rown))/3) -> 0.01923076923 | T118: =IF([Optimum]=MIN([Optimum]),0.5,NA()) -> 
J119: 0.012 | K119: 0.4807692308 | M119: 0.012 | N119: 0.5 | P119: 0.012 | Q119: 0.4615384615 | S119: =ABS(0.5-SUM(INDEX(Table_3,rown),INDEX(Table_4,rown),INDEX(Table_1,rown))/3) -> 0.01923076923 | T119: =IF([Optimum]=MIN([Optimum]),0.5,NA()) -> 
J120: 0.014 | K120: 0.4807692308 | M120: 0.014 | N120: 0.4807692308 | P120: 0.014 | Q120: 0.4615384615 | S120: =ABS(0.5-SUM(INDEX(Table_3,rown),INDEX(Table_4,rown),INDEX(Table_1,rown))/3) -> 0.02564102564 | T120: =IF([Optimum]=MIN([Optimum]),0.5,NA()) -> 
J121: 0.016 | K121: 0.4807692308 | M121: 0.016 | N121: 0.4615384615 | P121: 0.016 | Q121: 0.4423076923 | S121: =ABS(0.5-SUM(INDEX(Table_3,rown),INDEX(Table_4,rown),INDEX(Table_1,rown))/3) -> 0.03846153846 | T121: =IF([Optimum]=MIN([Optimum]),0.5,NA()) -> 
J122: 0.018 | K122: 0.4807692308 | M122: 0.018 | N122: 0.4615384615 | P122: 0.018 | Q122: 0.4230769231 | S122: =ABS(0.5-SUM(INDEX(Table_3,rown),INDEX(Table_4,rown),INDEX(Table_1,rown))/3) -> 0.04487179487 | T122: =IF([Optimum]=MIN([Optimum]),0.5,NA()) -> 
J123: 0.02 | K123: 0.4807692308 | M123: 0.02 | N123: 0.4615384615 | P123: 0.02 | Q123: 0.4230769231 | S123: =ABS(0.5-SUM(INDEX(Table_3,rown),INDEX(Table_4,rown),INDEX(Table_1,rown))/3) -> 0.04487179487 | T123: =IF([Optimum]=MIN([Optimum]),0.5,NA()) -> 
J124: 0.022 | K124: 0.4807692308 | M124: 0.022 | N124: 0.4615384615 | P124: 0.022 | Q124: 0.4230769231 | S124: =ABS(0.5-SUM(INDEX(Table_3,rown),INDEX(Table_4,rown),INDEX(Table_1,rown))/3) -> 0.04487179487 | T124: =IF([Optimum]=MIN([Optimum]),0.5,NA()) -> 
J125: 0.024 | K125: 0.4807692308 | M125: 0.024 | N125: 0.4615384615 | P125: 0.024 | Q125: 0.4038461538 | S125: =ABS(0.5-SUM(INDEX(Table_3,rown),INDEX(Table_4,rown),INDEX(Table_1,rown))/3) -> 0.05128205128 | T125: =IF([Optimum]=MIN([Optimum]),0.5,NA()) -> 
J126: 0.026 | K126: 0.4807692308 | M126: 0.026 | N126: 0.4615384615 | P126: 0.026 | Q126: 0.4038461538 | S126: =ABS(0.5-SUM(INDEX(Table_3,rown),INDEX(Table_4,rown),INDEX(Table_1,rown))/3) -> 0.05128205128 | T126: =IF([Optimum]=MIN([Optimum]),0.5,NA()) -> 
J127: 0.028 | K127: 0.4807692308 | M127: 0.028 | N127: 0.4615384615 | P127: 0.028 | Q127: 0.4038461538 | S127: =ABS(0.5-SUM(INDEX(Table_3,rown),INDEX(Table_4,rown),INDEX(Table_1,rown))/3) -> 0.05128205128 | T127: =IF([Optimum]=MIN([Optimum]),0.5,NA()) -> 
J128: 0.03 | K128: 0.4807692308 | M128: 0.03 | N128: 0.4615384615 | P128: 0.03 | Q128: 0.4038461538 | S128: =ABS(0.5-SUM(INDEX(Table_3,rown),INDEX(Table_4,rown),INDEX(Table_1,rown))/3) -> 0.05128205128 | T128: =IF([Optimum]=MIN([Optimum]),0.5,NA()) -> 
J129: 0.032 | K129: 0.4807692308 | M129: 0.032 | N129: 0.4615384615 | P129: 0.032 | Q129: 0.4038461538 | S129: =ABS(0.5-SUM(INDEX(Table_3,rown),INDEX(Table_4,rown),INDEX(Table_1,rown))/3) -> 0.05128205128 | T129: =IF([Optimum]=MIN([Optimum]),0.5,NA()) -> 
J130: 0.034 | K130: 0.4807692308 | M130: 0.034 | N130: 0.4615384615 | P130: 0.034 | Q130: 0.4038461538 | S130: =ABS(0.5-SUM(INDEX(Table_3,rown),INDEX(Table_4,rown),INDEX(Table_1,rown))/3) -> 0.05128205128 | T130: =IF([Optimum]=MIN([Optimum]),0.5,NA()) -> 
J131: 0.036 | K131: 0.4807692308 | M131: 0.036 | N131: 0.4615384615 | P131: 0.036 | Q131: 0.4038461538 | S131: =ABS(0.5-SUM(INDEX(Table_3,rown),INDEX(Table_4,rown),INDEX(Table_1,rown))/3) -> 0.05128205128 | T131: =IF([Optimum]=MIN([Optimum]),0.5,NA()) -> 
J132: 0.038 | K132: 0.4807692308 | M132: 0.038 | N132: 0.4423076923 | P132: 0.038 | Q132: 0.4038461538 | S132: =ABS(0.5-SUM(INDEX(Table_3,rown),INDEX(Table_4,rown),INDEX(Table_1,rown))/3) -> 0.05769230769 | T132: =IF([Optimum]=MIN([Optimum]),0.5,NA()) -> 
J133: 0.04 | K133: 0.4807692308 | M133: 0.04 | N133: 0.4423076923 | P133: 0.04 | Q133: 0.4038461538 | S133: =ABS(0.5-SUM(INDEX(Table_3,rown),INDEX(Table_4,rown),INDEX(Table_1,rown))/3) -> 0.05769230769 | T133: =IF([Optimum]=MIN([Optimum]),0.5,NA()) -> 
J134: 0.042 | K134: 0.4807692308 | M134: 0.042 | N134: 0.4423076923 | P134: 0.042 | Q134: 0.4038461538 | S134: =ABS(0.5-SUM(INDEX(Table_3,rown),INDEX(Table_4,rown),INDEX(Table_1,rown))/3) -> 0.05769230769 | T134: =IF([Optimum]=MIN([Optimum]),0.5,NA()) -> 
J135: 0.044 | K135: 0.4807692308 | M135: 0.044 | N135: 0.4423076923 | P135: 0.044 | Q135: 0.4038461538 | S135: =ABS(0.5-SUM(INDEX(Table_3,rown),INDEX(Table_4,rown),INDEX(Table_1,rown))/3) -> 0.05769230769 | T135: =IF([Optimum]=MIN([Optimum]),0.5,NA()) -> 
J136: 0.046 | K136: 0.4807692308 | M136: 0.046 | N136: 0.4230769231 | P136: 0.046 | Q136: 0.4038461538 | S136: =ABS(0.5-SUM(INDEX(Table_3,rown),INDEX(Table_4,rown),INDEX(Table_1,rown))/3) -> 0.0641025641 | T136: =IF([Optimum]=MIN([Optimum]),0.5,NA()) -> 
J137: 0.048 | K137: 0.4807692308 | M137: 0.048 | N137: 0.4230769231 | P137: 0.048 | Q137: 0.4038461538 | S137: =ABS(0.5-SUM(INDEX(Table_3,rown),INDEX(Table_4,rown),INDEX(Table_1,rown))/3) -> 0.0641025641 | T137: =IF([Optimum]=MIN([Optimum]),0.5,NA()) -> 
J138: 0.05 | K138: 0.4807692308 | M138: 0.05 | N138: 0.4230769231 | P138: 0.05 | Q138: 0.4038461538 | S138: =ABS(0.5-SUM(INDEX(Table_3,rown),INDEX(Table_4,rown),INDEX(Table_1,rown))/3) -> 0.0641025641 | T138: =IF([Optimum]=MIN([Optimum]),0.5,NA()) -> 
J139: 0.052 | K139: 0.4807692308 | M139: 0.052 | N139: 0.4230769231 | P139: 0.052 | Q139: 0.4038461538 | S139: =ABS(0.5-SUM(INDEX(Table_3,rown),INDEX(Table_4,rown),INDEX(Table_1,rown))/3) -> 0.0641025641 | T139: =IF([Optimum]=MIN([Optimum]),0.5,NA()) -> 
J140: 0.054 | K140: 0.4615384615 | M140: 0.054 | N140: 0.4230769231 | P140: 0.054 | Q140: 0.4038461538 | S140: =ABS(0.5-SUM(INDEX(Table_3,rown),INDEX(Table_4,rown),INDEX(Table_1,rown))/3) -> 0.07051282051 | T140: =IF([Optimum]=MIN([Optimum]),0.5,NA()) -> 
J141: 0.056 | K141: 0.4423076923 | M141: 0.056 | N141: 0.4230769231 | P141: 0.056 | Q141: 0.4038461538 | S141: =ABS(0.5-SUM(INDEX(Table_3,rown),INDEX(Table_4,rown),INDEX(Table_1,rown))/3) -> 0.07692307692 | T141: =IF([Optimum]=MIN([Optimum]),0.5,NA()) -> 
J142: 0.058 | K142: 0.4423076923 | M142: 0.058 | N142: 0.4230769231 | P142: 0.058 | Q142: 0.4038461538 | S142: =ABS(0.5-SUM(INDEX(Table_3,rown),INDEX(Table_4,rown),INDEX(Table_1,rown))/3) -> 0.07692307692 | T142: =IF([Optimum]=MIN([Optimum]),0.5,NA()) -> 
J143: 0.06 | K143: 0.4423076923 | M143: 0.06 | N143: 0.4230769231 | P143: 0.06 | Q143: 0.3846153846 | S143: =ABS(0.5-SUM(INDEX(Table_3,rown),INDEX(Table_4,rown),INDEX(Table_1,rown))/3) -> 0.08333333333 | T143: =IF([Optimum]=MIN([Optimum]),0.5,NA()) -> 
J144: 0.062 | K144: 0.4423076923 | M144: 0.062 | N144: 0.4230769231 | P144: 0.062 | Q144: 0.3846153846 | S144: =ABS(0.5-SUM(INDEX(Table_3,rown),INDEX(Table_4,rown),INDEX(Table_1,rown))/3) -> 0.08333333333 | T144: =IF([Optimum]=MIN([Optimum]),0.5,NA()) -> 
J145: 0.064 | K145: 0.4423076923 | M145: 0.064 | N145: 0.4230769231 | P145: 0.064 | Q145: 0.3846153846 | S145: =ABS(0.5-SUM(INDEX(Table_3,rown),INDEX(Table_4,rown),INDEX(Table_1,rown))/3) -> 0.08333333333 | T145: =IF([Optimum]=MIN([Optimum]),0.5,NA()) -> 
J146: 0.066 | K146: 0.4423076923 | M146: 0.066 | N146: 0.4230769231 | P146: 0.066 | Q146: 0.3846153846 | S146: =ABS(0.5-SUM(INDEX(Table_3,rown),INDEX(Table_4,rown),INDEX(Table_1,rown))/3) -> 0.08333333333 | T146: =IF([Optimum]=MIN([Optimum]),0.5,NA()) -> 
J147: 0.068 | K147: 0.4423076923 | M147: 0.068 | N147: 0.4230769231 | P147: 0.068 | Q147: 0.3846153846 | S147: =ABS(0.5-SUM(INDEX(Table_3,rown),INDEX(Table_4,rown),INDEX(Table_1,rown))/3) -> 0.08333333333 | T147: =IF([Optimum]=MIN([Optimum]),0.5,NA()) -> 
J148: 0.07 | K148: 0.4423076923 | M148: 0.07 | N148: 0.4230769231 | P148: 0.07 | Q148: 0.3846153846 | S148: =ABS(0.5-SUM(INDEX(Table_3,rown),INDEX(Table_4,rown),INDEX(Table_1,rown))/3) -> 0.08333333333 | T148: =IF([Optimum]=MIN([Optimum]),0.5,NA()) -> 
J149: 0.072 | K149: 0.4423076923 | M149: 0.072 | N149: 0.4230769231 | P149: 0.072 | Q149: 0.3846153846 | S149: =ABS(0.5-SUM(INDEX(Table_3,rown),INDEX(Table_4,rown),INDEX(Table_1,rown))/3) -> 0.08333333333 | T149: =IF([Optimum]=MIN([Optimum]),0.5,NA()) -> 
J150: 0.074 | K150: 0.4423076923 | M150: 0.074 | N150: 0.4230769231 | P150: 0.074 | Q150: 0.3653846154 | S150: =ABS(0.5-SUM(INDEX(Table_3,rown),INDEX(Table_4,rown),INDEX(Table_1,rown))/3) -> 0.08974358974 | T150: =IF([Optimum]=MIN([Optimum]),0.5,NA()) -> 
J151: 0.076 | K151: 0.4423076923 | M151: 0.076 | N151: 0.4230769231 | P151: 0.076 | Q151: 0.3653846154 | S151: =ABS(0.5-SUM(INDEX(Table_3,rown),INDEX(Table_4,rown),INDEX(Table_1,rown))/3) -> 0.08974358974 | T151: =IF([Optimum]=MIN([Optimum]),0.5,NA()) -> 
J152: 0.078 | K152: 0.4423076923 | M152: 0.078 | N152: 0.4230769231 | P152: 0.078 | Q152: 0.3653846154 | S152: =ABS(0.5-SUM(INDEX(Table_3,rown),INDEX(Table_4,rown),INDEX(Table_1,rown))/3) -> 0.08974358974 | T152: =IF([Optimum]=MIN([Optimum]),0.5,NA()) -> 
J153: 0.08 | K153: 0.4423076923 | M153: 0.08 | N153: 0.4230769231 | P153: 0.08 | Q153: 0.3653846154 | S153: =ABS(0.5-SUM(INDEX(Table_3,rown),INDEX(Table_4,rown),INDEX(Table_1,rown))/3) -> 0.08974358974 | T153: =IF([Optimum]=MIN([Optimum]),0.5,NA()) -> 
J154: 0.082 | K154: 0.4423076923 | M154: 0.082 | N154: 0.4230769231 | P154: 0.082 | Q154: 0.3653846154 | S154: =ABS(0.5-SUM(INDEX(Table_3,rown),INDEX(Table_4,rown),INDEX(Table_1,rown))/3) -> 0.08974358974 | T154: =IF([Optimum]=MIN([Optimum]),0.5,NA()) -> 
J155: 0.084 | K155: 0.4423076923 | M155: 0.084 | N155: 0.4230769231 | P155: 0.084 | Q155: 0.3653846154 | S155: =ABS(0.5-SUM(INDEX(Table_3,rown),INDEX(Table_4,rown),INDEX(Table_1,rown))/3) -> 0.08974358974 | T155: =IF([Optimum]=MIN([Optimum]),0.5,NA()) -> 
J156: 0.086 | K156: 0.4423076923 | M156: 0.086 | N156: 0.4038461538 | P156: 0.086 | Q156: 0.3653846154 | S156: =ABS(0.5-SUM(INDEX(Table_3,rown),INDEX(Table_4,rown),INDEX(Table_1,rown))/3) -> 0.09615384615 | T156: =IF([Optimum]=MIN([Optimum]),0.5,NA()) -> 
J157: 0.088 | K157: 0.4423076923 | M157: 0.088 | N157: 0.4038461538 | P157: 0.088 | Q157: 0.3653846154 | S157: =ABS(0.5-SUM(INDEX(Table_3,rown),INDEX(Table_4,rown),INDEX(Table_1,rown))/3) -> 0.09615384615 | T157: =IF([Optimum]=MIN([Optimum]),0.5,NA()) -> 
J158: 0.09 | K158: 0.4230769231 | M158: 0.09 | N158: 0.4038461538 | P158: 0.09 | Q158: 0.3653846154 | S158: =ABS(0.5-SUM(INDEX(Table_3,rown),INDEX(Table_4,rown),INDEX(Table_1,rown))/3) -> 0.1025641026 | T158: =IF([Optimum]=MIN([Optimum]),0.5,NA()) -> 
J159: 0.092 | K159: 0.4230769231 | M159: 0.092 | N159: 0.4038461538 | P159: 0.092 | Q159: 0.3653846154 | S159: =ABS(0.5-SUM(INDEX(Table_3,rown),INDEX(Table_4,rown),INDEX(Table_1,rown))/3) -> 0.1025641026 | T159: =IF([Optimum]=MIN([Optimum]),0.5,NA()) -> 
J160: 0.094 | K160: 0.4230769231 | M160: 0.094 | N160: 0.4038461538 | P160: 0.094 | Q160: 0.3653846154 | S160: =ABS(0.5-SUM(INDEX(Table_3,rown),INDEX(Table_4,rown),INDEX(Table_1,rown))/3) -> 0.1025641026 | T160: =IF([Optimum]=MIN([Optimum]),0.5,NA()) -> 
J161: 0.096 | K161: 0.4230769231 | M161: 0.096 | N161: 0.4038461538 | P161: 0.096 | Q161: 0.3653846154 | S161: =ABS(0.5-SUM(INDEX(Table_3,rown),INDEX(Table_4,rown),INDEX(Table_1,rown))/3) -> 0.1025641026 | T161: =IF([Optimum]=MIN([Optimum]),0.5,NA()) -> 
J162: 0.098 | K162: 0.4230769231 | M162: 0.098 | N162: 0.3846153846 | P162: 0.098 | Q162: 0.3653846154 | S162: =ABS(0.5-SUM(INDEX(Table_3,rown),INDEX(Table_4,rown),INDEX(Table_1,rown))/3) -> 0.108974359 | T162: =IF([Optimum]=MIN([Optimum]),0.5,NA()) -> 
J163: 0.1 | K163: 0.4230769231 | M163: 0.1 | N163: 0.3846153846 | P163: 0.1 | Q163: 0.3653846154 | S163: =ABS(0.5-SUM(INDEX(Table_3,rown),INDEX(Table_4,rown),INDEX(Table_1,rown))/3) -> 0.108974359 | T163: =IF([Optimum]=MIN([Optimum]),0.5,NA()) -> 
J164: 0.102 | K164: 0.4230769231 | M164: 0.102 | N164: 0.3846153846 | P164: 0.102 | Q164: 0.3461538462 | S164: =ABS(0.5-SUM(INDEX(Table_3,rown),INDEX(Table_4,rown),INDEX(Table_1,rown))/3) -> 0.1153846154 | T164: =IF([Optimum]=MIN([Optimum]),0.5,NA()) -> 
J165: 0.104 | K165: 0.4230769231 | M165: 0.104 | N165: 0.3846153846 | P165: 0.104 | Q165: 0.3461538462 | S165: =ABS(0.5-SUM(INDEX(Table_3,rown),INDEX(Table_4,rown),INDEX(Table_1,rown))/3) -> 0.1153846154 | T165: =IF([Optimum]=MIN([Optimum]),0.5,NA()) -> 
J166: 0.106 | K166: 0.4230769231 | M166: 0.106 | N166: 0.3846153846 | P166: 0.106 | Q166: 0.3461538462 | S166: =ABS(0.5-SUM(INDEX(Table_3,rown),INDEX(Table_4,rown),INDEX(Table_1,rown))/3) -> 0.1153846154 | T166: =IF([Optimum]=MIN([Optimum]),0.5,NA()) -> 
J167: 0.108 | K167: 0.4230769231 | M167: 0.108 | N167: 0.3653846154 | P167: 0.108 | Q167: 0.3461538462 | S167: =ABS(0.5-SUM(INDEX(Table_3,rown),INDEX(Table_4,rown),INDEX(Table_1,rown))/3) -> 0.1217948718 | T167: =IF([Optimum]=MIN([Optimum]),0.5,NA()) -> 
J168: 0.11 | K168: 0.4230769231 | M168: 0.11 | N168: 0.3653846154 | P168: 0.11 | Q168: 0.3461538462 | S168: =ABS(0.5-SUM(INDEX(Table_3,rown),INDEX(Table_4,rown),INDEX(Table_1,rown))/3) -> 0.1217948718 | T168: =IF([Optimum]=MIN([Optimum]),0.5,NA()) -> 
J169: 0.112 | K169: 0.4230769231 | M169: 0.112 | N169: 0.3653846154 | P169: 0.112 | Q169: 0.3461538462 | S169: =ABS(0.5-SUM(INDEX(Table_3,rown),INDEX(Table_4,rown),INDEX(Table_1,rown))/3) -> 0.1217948718 | T169: =IF([Optimum]=MIN([Optimum]),0.5,NA()) -> 
J170: 0.114 | K170: 0.4230769231 | M170: 0.114 | N170: 0.3653846154 | P170: 0.114 | Q170: 0.3461538462 | S170: =ABS(0.5-SUM(INDEX(Table_3,rown),INDEX(Table_4,rown),INDEX(Table_1,rown))/3) -> 0.1217948718 | T170: =IF([Optimum]=MIN([Optimum]),0.5,NA()) -> 
J171: 0.116 | K171: 0.4230769231 | M171: 0.116 | N171: 0.3461538462 | P171: 0.116 | Q171: 0.3461538462 | S171: =ABS(0.5-SUM(INDEX(Table_3,rown),INDEX(Table_4,rown),INDEX(Table_1,rown))/3) -> 0.1282051282 | T171: =IF([Optimum]=MIN([Optimum]),0.5,NA()) -> 
J172: 0.118 | K172: 0.4230769231 | M172: 0.118 | N172: 0.3461538462 | P172: 0.118 | Q172: 0.3461538462 | S172: =ABS(0.5-SUM(INDEX(Table_3,rown),INDEX(Table_4,rown),INDEX(Table_1,rown))/3) -> 0.1282051282 | T172: =IF([Optimum]=MIN([Optimum]),0.5,NA()) -> 
J173: 0.12 | K173: 0.4230769231 | M173: 0.12 | N173: 0.3461538462 | P173: 0.12 | Q173: 0.3461538462 | S173: =ABS(0.5-SUM(INDEX(Table_3,rown),INDEX(Table_4,rown),INDEX(Table_1,rown))/3) -> 0.1282051282 | T173: =IF([Optimum]=MIN([Optimum]),0.5,NA()) -> 
J174: 0.122 | K174: 0.4038461538 | M174: 0.122 | N174: 0.3461538462 | P174: 0.122 | Q174: 0.3461538462 | S174: =ABS(0.5-SUM(INDEX(Table_3,rown),INDEX(Table_4,rown),INDEX(Table_1,rown))/3) -> 0.1346153846 | T174: =IF([Optimum]=MIN([Optimum]),0.5,NA()) -> 
J175: 0.124 | K175: 0.4038461538 | M175: 0.124 | N175: 0.3461538462 | P175: 0.124 | Q175: 0.3461538462 | S175: =ABS(0.5-SUM(INDEX(Table_3,rown),INDEX(Table_4,rown),INDEX(Table_1,rown))/3) -> 0.1346153846 | T175: =IF([Optimum]=MIN([Optimum]),0.5,NA()) -> 
J176: 0.126 | K176: 0.4038461538 | M176: 0.126 | N176: 0.3461538462 | P176: 0.126 | Q176: 0.3461538462 | S176: =ABS(0.5-SUM(INDEX(Table_3,rown),INDEX(Table_4,rown),INDEX(Table_1,rown))/3) -> 0.1346153846 | T176: =IF([Optimum]=MIN([Optimum]),0.5,NA()) -> 
J177: 0.128 | K177: 0.4038461538 | M177: 0.128 | N177: 0.3461538462 | P177: 0.128 | Q177: 0.3461538462 | S177: =ABS(0.5-SUM(INDEX(Table_3,rown),INDEX(Table_4,rown),INDEX(Table_1,rown))/3) -> 0.1346153846 | T177: =IF([Optimum]=MIN([Optimum]),0.5,NA()) -> 
J178: 0.13 | K178: 0.4038461538 | M178: 0.13 | N178: 0.3461538462 | P178: 0.13 | Q178: 0.3461538462 | S178: =ABS(0.5-SUM(INDEX(Table_3,rown),INDEX(Table_4,rown),INDEX(Table_1,rown))/3) -> 0.1346153846 | T178: =IF([Optimum]=MIN([Optimum]),0.5,NA()) -> 
J179: 0.132 | K179: 0.4038461538 | M179: 0.132 | N179: 0.3461538462 | P179: 0.132 | Q179: 0.3461538462 | S179: =ABS(0.5-SUM(INDEX(Table_3,rown),INDEX(Table_4,rown),INDEX(Table_1,rown))/3) -> 0.1346153846 | T179: =IF([Optimum]=MIN([Optimum]),0.5,NA()) -> 
J180: 0.134 | K180: 0.3846153846 | M180: 0.134 | N180: 0.3461538462 | P180: 0.134 | Q180: 0.3461538462 | S180: =ABS(0.5-SUM(INDEX(Table_3,rown),INDEX(Table_4,rown),INDEX(Table_1,rown))/3) -> 0.141025641 | T180: =IF([Optimum]=MIN([Optimum]),0.5,NA()) -> 
J181: 0.136 | K181: 0.3846153846 | M181: 0.136 | N181: 0.3461538462 | P181: 0.136 | Q181: 0.3461538462 | S181: =ABS(0.5-SUM(INDEX(Table_3,rown),INDEX(Table_4,rown),INDEX(Table_1,rown))/3) -> 0.141025641 | T181: =IF([Optimum]=MIN([Optimum]),0.5,NA()) -> 
J182: 0.138 | K182: 0.3846153846 | M182: 0.138 | N182: 0.3269230769 | P182: 0.138 | Q182: 0.3461538462 | S182: =ABS(0.5-SUM(INDEX(Table_3,rown),INDEX(Table_4,rown),INDEX(Table_1,rown))/3) -> 0.1474358974 | T182: =IF([Optimum]=MIN([Optimum]),0.5,NA()) -> 
J183: 0.14 | K183: 0.3846153846 | M183: 0.14 | N183: 0.3269230769 | P183: 0.14 | Q183: 0.3461538462 | S183: =ABS(0.5-SUM(INDEX(Table_3,rown),INDEX(Table_4,rown),INDEX(Table_1,rown))/3) -> 0.1474358974 | T183: =IF([Optimum]=MIN([Optimum]),0.5,NA()) -> 
J184: 0.142 | K184: 0.3846153846 | M184: 0.142 | N184: 0.3269230769 | P184: 0.142 | Q184: 0.3461538462 | S184: =ABS(0.5-SUM(INDEX(Table_3,rown),INDEX(Table_4,rown),INDEX(Table_1,rown))/3) -> 0.1474358974 | T184: =IF([Optimum]=MIN([Optimum]),0.5,NA()) -> 
J185: 0.144 | K185: 0.3846153846 | M185: 0.144 | N185: 0.3269230769 | P185: 0.144 | Q185: 0.3461538462 | S185: =ABS(0.5-SUM(INDEX(Table_3,rown),INDEX(Table_4,rown),INDEX(Table_1,rown))/3) -> 0.1474358974 | T185: =IF([Optimum]=MIN([Optimum]),0.5,NA()) -> 
J186: 0.146 | K186: 0.3846153846 | M186: 0.146 | N186: 0.3269230769 | P186: 0.146 | Q186: 0.3461538462 | S186: =ABS(0.5-SUM(INDEX(Table_3,rown),INDEX(Table_4,rown),INDEX(Table_1,rown))/3) -> 0.1474358974 | T186: =IF([Optimum]=MIN([Optimum]),0.5,NA()) -> 
J187: 0.148 | K187: 0.3846153846 | M187: 0.148 | N187: 0.3269230769 | P187: 0.148 | Q187: 0.3461538462 | S187: =ABS(0.5-SUM(INDEX(Table_3,rown),INDEX(Table_4,rown),INDEX(Table_1,rown))/3) -> 0.1474358974 | T187: =IF([Optimum]=MIN([Optimum]),0.5,NA()) -> 
J188: 0.15 | K188: 0.3846153846 | M188: 0.15 | N188: 0.3269230769 | P188: 0.15 | Q188: 0.3461538462 | S188: =ABS(0.5-SUM(INDEX(Table_3,rown),INDEX(Table_4,rown),INDEX(Table_1,rown))/3) -> 0.1474358974 | T188: =IF([Optimum]=MIN([Optimum]),0.5,NA()) -> 
J189: 0.152 | K189: 0.3846153846 | M189: 0.152 | N189: 0.3269230769 | P189: 0.152 | Q189: 0.3461538462 | S189: =ABS(0.5-SUM(INDEX(Table_3,rown),INDEX(Table_4,rown),INDEX(Table_1,rown))/3) -> 0.1474358974 | T189: =IF([Optimum]=MIN([Optimum]),0.5,NA()) -> 
J190: 0.154 | K190: 0.3846153846 | M190: 0.154 | N190: 0.3269230769 | P190: 0.154 | Q190: 0.3461538462 | S190: =ABS(0.5-SUM(INDEX(Table_3,rown),INDEX(Table_4,rown),INDEX(Table_1,rown))/3) -> 0.1474358974 | T190: =IF([Optimum]=MIN([Optimum]),0.5,NA()) -> 
J191: 0.156 | K191: 0.3846153846 | M191: 0.156 | N191: 0.3269230769 | P191: 0.156 | Q191: 0.3461538462 | S191: =ABS(0.5-SUM(INDEX(Table_3,rown),INDEX(Table_4,rown),INDEX(Table_1,rown))/3) -> 0.1474358974 | T191: =IF([Optimum]=MIN([Optimum]),0.5,NA()) -> 
J192: 0.158 | K192: 0.3846153846 | M192: 0.158 | N192: 0.3269230769 | P192: 0.158 | Q192: 0.3461538462 | S192: =ABS(0.5-SUM(INDEX(Table_3,rown),INDEX(Table_4,rown),INDEX(Table_1,rown))/3) -> 0.1474358974 | T192: =IF([Optimum]=MIN([Optimum]),0.5,NA()) -> 
J193: 0.16 | K193: 0.3846153846 | M193: 0.16 | N193: 0.2884615385 | P193: 0.16 | Q193: 0.3461538462 | S193: =ABS(0.5-SUM(INDEX(Table_3,rown),INDEX(Table_4,rown),INDEX(Table_1,rown))/3) -> 0.1602564103 | T193: =IF([Optimum]=MIN([Optimum]),0.5,NA()) -> 
J194: 0.162 | K194: 0.3846153846 | M194: 0.162 | N194: 0.2884615385 | P194: 0.162 | Q194: 0.3461538462 | S194: =ABS(0.5-SUM(INDEX(Table_3,rown),INDEX(Table_4,rown),INDEX(Table_1,rown))/3) -> 0.1602564103 | T194: =IF([Optimum]=MIN([Optimum]),0.5,NA()) -> 
J195: 0.164 | K195: 0.3846153846 | M195: 0.164 | N195: 0.2884615385 | P195: 0.164 | Q195: 0.3461538462 | S195: =ABS(0.5-SUM(INDEX(Table_3,rown),INDEX(Table_4,rown),INDEX(Table_1,rown))/3) -> 0.1602564103 | T195: =IF([Optimum]=MIN([Optimum]),0.5,NA()) -> 
J196: 0.166 | K196: 0.3846153846 | M196: 0.166 | N196: 0.2884615385 | P196: 0.166 | Q196: 0.3461538462 | S196: =ABS(0.5-SUM(INDEX(Table_3,rown),INDEX(Table_4,rown),INDEX(Table_1,rown))/3) -> 0.1602564103 | T196: =IF([Optimum]=MIN([Optimum]),0.5,NA()) -> 
J197: 0.168 | K197: 0.3653846154 | M197: 0.168 | N197: 0.2884615385 | P197: 0.168 | Q197: 0.3269230769 | S197: =ABS(0.5-SUM(INDEX(Table_3,rown),INDEX(Table_4,rown),INDEX(Table_1,rown))/3) -> 0.1730769231 | T197: =IF([Optimum]=MIN([Optimum]),0.5,NA()) -> 
J198: 0.17 | K198: 0.3653846154 | M198: 0.17 | N198: 0.2884615385 | P198: 0.17 | Q198: 0.3269230769 | S198: =ABS(0.5-SUM(INDEX(Table_3,rown),INDEX(Table_4,rown),INDEX(Table_1,rown))/3) -> 0.1730769231 | T198: =IF([Optimum]=MIN([Optimum]),0.5,NA()) -> 
J199: 0.172 | K199: 0.3653846154 | M199: 0.172 | N199: 0.2884615385 | P199: 0.172 | Q199: 0.3269230769 | S199: =ABS(0.5-SUM(INDEX(Table_3,rown),INDEX(Table_4,rown),INDEX(Table_1,rown))/3) -> 0.1730769231 | T199: =IF([Optimum]=MIN([Optimum]),0.5,NA()) -> 
J200: 0.174 | K200: 0.3653846154 | M200: 0.174 | N200: 0.2692307692 | P200: 0.174 | Q200: 0.3076923077 | S200: =ABS(0.5-SUM(INDEX(Table_3,rown),INDEX(Table_4,rown),INDEX(Table_1,rown))/3) -> 0.1858974359 | T200: =IF([Optimum]=MIN([Optimum]),0.5,NA()) -> 
J201: 0.176 | K201: 0.3653846154 | M201: 0.176 | N201: 0.2692307692 | P201: 0.176 | Q201: 0.2884615385 | S201: =ABS(0.5-SUM(INDEX(Table_3,rown),INDEX(Table_4,rown),INDEX(Table_1,rown))/3) -> 0.1923076923 | T201: =IF([Optimum]=MIN([Optimum]),0.5,NA()) -> 
J202: 0.178 | K202: 0.3653846154 | M202: 0.178 | N202: 0.2692307692 | P202: 0.178 | Q202: 0.2884615385 | S202: =ABS(0.5-SUM(INDEX(Table_3,rown),INDEX(Table_4,rown),INDEX(Table_1,rown))/3) -> 0.1923076923 | T202: =IF([Optimum]=MIN([Optimum]),0.5,NA()) -> 
J203: 0.18 | K203: 0.3653846154 | M203: 0.18 | N203: 0.2692307692 | P203: 0.18 | Q203: 0.2884615385 | S203: =ABS(0.5-SUM(INDEX(Table_3,rown),INDEX(Table_4,rown),INDEX(Table_1,rown))/3) -> 0.1923076923 | T203: =IF([Optimum]=MIN([Optimum]),0.5,NA()) -> 
J204: 0.182 | K204: 0.3653846154 | M204: 0.182 | N204: 0.25 | P204: 0.182 | Q204: 0.2884615385 | S204: =ABS(0.5-SUM(INDEX(Table_3,rown),INDEX(Table_4,rown),INDEX(Table_1,rown))/3) -> 0.1987179487 | T204: =IF([Optimum]=MIN([Optimum]),0.5,NA()) -> 
... 9 more rows
